fUST/lending_fUST_20240407
["ID","MTS","AMOUNT","RATE_DAILY","PERIOD"]
[321706127,1712419205604,7597.2372896,0.00024904,2]
[321706167,1712419241304,442.615121,0.00024903,2]
[321706179,1712419295403,151.0,0.000245,2]
[321706181,1712419338150,14391.73735293,0.00021168,5]
[321706330,1712419745282,192.780507,0.00024607,2]
[321706338,1712419777549,221.30756,0.00024881,2]
[321706413,1712419832244,-169.17282248,0.00025781,2]
[321706415,1712419832254,-191.06430161,0.00025791,2]
[321706416,1712419832263,-164.93017218,0.00025792,2]
[321706418,1712419832273,-300.0,0.00025878,2]
[321706420,1712419832282,-300.0,0.00025878,2]
[321706421,1712419832291,-19121.86405595,0.00025878,2]
[321706422,1712419832300,-46315.35342649,0.00025879,2]
[321706436,1712419838336,-1048.23480904,0.00025879,2]
[321706443,1712419840848,-4998.5337672,0.00025879,2]
[321706444,1712419840857,-306.84466162,0.0002588,2]
[321706445,1712419840865,-155.0,0.0002588,2]
[321706446,1712419840874,-437.44530663,0.00025881,2]
[321706447,1712419840888,-735.69714233,0.00025881,2]
[321706448,1712419840897,-478.60045767,0.00025885,2]
[321706449,1712419840910,-106.32870702,0.00025885,2]
[321706450,1712419840919,-500.0,0.00025886,2]
[321706451,1712419840929,-500.0,0.00025886,2]
[321706452,1712419840938,-500.0,0.00025886,2]
[321706453,1712419840947,-500.0,0.00025886,2]
[321706454,1712419840956,-500.0,0.00025886,2]
[321706455,1712419840965,-1233.07,0.00025894,2]
[321706456,1712419840974,-500.0,0.00025894,2]
[321706457,1712419840983,-798.09,0.00025894,2]
[321706458,1712419840993,-5303.38,0.00025894,2]
[321706459,1712419841002,-1205.76,0.00025894,2]
[321706460,1712419841011,-500.0,0.00025894,2]
[321706461,1712419841021,-1330.7,0.00025894,2]
[321706462,1712419841030,-872.92,0.00025894,2]
[321706463,1712419841039,-643.59,0.00025894,2]
[321706464,1712419841049,-211.84599327,0.00025897,2]
[321706465,1712419841058,-417.02908607,0.00025902,2]
[321706466,1712419841071,-82.97091393,0.00025902,2]
[321706467,1712419841080,-500.0,0.00025902,2]
[321706468,1712419841091,-500.0,0.00025902,2]
[321706469,1712419841100,-500.0,0.00025902,2]
[321706470,1712419841109,-500.0,0.00025902,2]
[321706471,1712419841118,-500.0,0.00025902,2]
[321706472,1712419841127,-1040.39,0.00025902,2]
[321706473,1712419841136,-723.16,0.00025902,2]
[321706474,1712419841146,-500.0,0.00025902,2]
[321706475,1712419841155,-1256.95,0.00025902,2]
[321706476,1712419841164,-833.87,0.00025902,2]
[321706477,1712419841174,-500.0,0.00025902,2]
[321706478,1712419841183,-500.0,0.00025902,2]
[321706479,1712419841192,-150.684399,0.00025902,2]
[321706480,1712419841206,-349.315601,0.00025902,2]
[321706481,1712419841216,-500.0,0.00025902,2]
[321706482,1712419841225,-500.0,0.00025902,2]
[321706483,1712419841234,-3594.0,0.00025902,2]
[321706484,1712419841244,-500.0,0.00025902,2]
[321706485,1712419841253,-964.63,0.00025902,2]
[321706486,1712419841262,-613.54273729,0.00025902,2]
[321706487,1712419841271,-500.0,0.00025902,2]
[321706488,1712419841280,-500.0,0.00025902,2]
[321706489,1712419841290,-500.0,0.00025902,2]
[321706490,1712419841300,-500.0,0.00025902,2]
[321706491,1712419841309,-185.72022968,0.00025907,2]
[321706492,1712419841318,-169.64082352,0.00025907,2]
[321706493,1712419841327,-2610.92425601,0.00025907,2]
[321706494,1712419841336,-221.35937062,0.00025907,2]
[321706495,1712419841347,-671.22749641,0.00025908,2]
[321706496,1712419841357,-570.13,0.00025908,2]
[321706497,1712419841366,-500.0,0.00025909,2]
[321706498,1712419841375,-500.0,0.00025909,2]
[321706499,1712419841384,-500.0,0.0002616,2]
[321706500,1712419841393,-500.0,0.0002616,2]
[321706501,1712419841403,-500.0,0.0002616,2]
[321706502,1712419841412,-500.0,0.0002616,2]
[321706503,1712419841421,-500.0,0.0002616,2]
[321706504,1712419841430,-269.77466173,0.00026168,2]
[321706505,1712419841445,-963.29533827,0.00026168,2]
[321706506,1712419841455,-500.0,0.00026168,2]
[321706507,1712419841468,-798.09,0.00026168,2]
[321706508,1712419841477,-3849.46478162,0.00026168,2]
[321706509,1712419841491,-1453.91521838,0.00026168,2]
[321706510,1712419841501,-1205.76,0.00026168,2]
[321706511,1712419841510,-500.0,0.00026168,2]
[321706512,1712419841521,-1330.7,0.00026168,2]
[321706513,1712419841530,-872.92,0.00026168,2]
[321706514,1712419841540,-643.59,0.00026168,2]
[321706515,1712419841549,-500.0,0.00026176,2]
[321706516,1712419841559,-500.0,0.00026176,2]
[321706517,1712419841568,-500.0,0.00026176,2]
[321706518,1712419841578,-500.0,0.00026176,2]
[321706519,1712419841587,-1040.39,0.00026176,2]
[321706520,1712419841596,-723.16,0.00026176,2]
[321706521,1712419841606,-1256.95,0.00026176,2]
[321706522,1712419841614,-833.87,0.00026176,2]
[321706523,1712419841624,-500.0,0.00026176,2]
[321706524,1712419841633,-44.65385264,0.00026176,2]
[321706525,1712419841647,-455.34614736,0.00026176,2]
[321706526,1712419841656,-500.0,0.00026176,2]
[321706527,1712419841665,-3594.0,0.00026176,2]
[321706528,1712419841675,-964.63,0.00026176,2]
[321706529,1712419841684,-500.0,0.00026176,2]
[321706530,1712419841693,-500.0,0.00026176,2]
[321706531,1712419841703,-1254.49091762,0.00026181,2]
[321706532,1712419841713,-218.81036101,0.00026181,2]
[321706533,1712419841723,-570.13,0.00026182,2]
[321706534,1712419841733,-500.0,0.00026183,2]
[321706535,1712419841742,-500.0,0.00026434,2]
[321706536,1712419841751,-500.0,0.00026434,2]
[321706537,1712419841760,-500.0,0.00026434,2]
[321706538,1712419841769,-500.0,0.00026434,2]
[321706539,1712419841778,-500.0,0.00026434,2]
[321706540,1712419841787,-1233.07,0.00026442,2]
[321706541,1712419841796,-500.0,0.00026442,2]
[321706542,1712419841805,-591.98982786,0.00026442,2]
[321706543,1712419841817,-206.10017214,0.00026442,2]
[321706544,1712419841826,-4734.81454219,0.00026442,2]
[321706551,1712419843388,-4487.41247563,0.00025876,2]
[321706692,1712419862513,924.16540246,0.00025126,2]
[321706698,1712419880435,924.16540246,0.0002458,2]
[321706699,1712419896470,368.83455416,0.0002458,2]
[321706746,1712420049610,300.0,0.000254,2]
[321706756,1712420059510,-50000.0,0.00030137,30]
[321706865,1712420226638,197.3550016,0.00024869,2]
[321706866,1712420232111,155.0,0.00024868,2]
[321706869,1712420297305,171.688251,0.00024784,2]
[321706871,1712420348976,3671.9658909,0.000248,2]
[321706880,1712420447321,150.98490151,0.00026853,120]
[321706882,1712420471170,220.158138,0.00024704,2]
[321706883,1712420488142,66295.0,0.000254,2]
[321706889,1712420685388,314.97345377,0.000254,2]
[321706930,1712420768144,155.0,0.000254,2]
[321706948,1712420798779,1484.4319684,0.000254,2]
[321706961,1712420871276,1484.4319684,0.000254,2]
[321706963,1712420887277,590.42848225,0.000254,2]
[321706964,1712420893572,150.98490151,0.00026918,120]
[321706968,1712420906002,19121.86405595,0.000254,2]
[321706970,1712420921957,19121.86405595,0.000254,2]
[321706971,1712420925800,187.07205028,0.00025305,2]
[321706974,1712420939930,2732.41613904,0.000254,2]
[321706975,1712420940663,300.0,0.000254,2]
[321706976,1712420941635,300.0,0.000254,2]
[321706978,1712420949962,220.158138,0.00024537,2]
[321706982,1712420988961,162.0,0.000254,2]
[321706983,1712420988990,167.48685813,0.000254,2]
[321706984,1712420991614,500.0,0.00025375,2]
[321706985,1712420992616,1962.1936922,0.000254,2]
[321706986,1712420993401,195.42184891,0.000254,2]
[321706987,1712420994572,282.55053323,0.000254,2]
[321706988,1712420995787,1088.11918186,0.000254,2]
[321706989,1712420996589,501.52013935,0.0002413,2]
[321706990,1712420997457,379.754361,0.00024892,2]
[321706991,1712420997509,200.05720005,0.000254,2]
[321706992,1712420999629,287.96546735,0.000254,2]
[321706993,1712420999945,278.0336955,0.000254,2]
[321706994,1712421000661,300.0,0.000254,2]
[321706995,1712421002325,300.0,0.000254,2]
[321706996,1712421003664,1353.775,0.00025146,2]
[321706997,1712421008611,1411.39697516,0.000254,2]
[321707130,1712421034787,150.0,0.000233,2]
[321707150,1712421038438,-1428.315,0.00025401,2]
[321707151,1712421038454,-42206.78666894,0.00025401,2]
[321707152,1712421038465,-169.17282248,0.00025405,2]
[321707153,1712421038475,-261.79876344,0.00025405,2]
[321707154,1712421038486,-155.57676806,0.00025497,2]
[321707155,1712421038496,-500.0,0.00025498,2]
[321707156,1712421038506,-500.0,0.00025498,2]
[321707157,1712421038516,-500.0,0.00025498,2]
[321707159,1712421038527,-531.21,0.00025498,2]
[321707160,1712421038537,-500.0,0.00025498,2]
[321707161,1712421038547,-500.0,0.00025498,2]
[321707163,1712421038557,-500.0,0.00025498,2]
[321707165,1712421038568,-500.0,0.00025498,2]
[321707166,1712421038579,-500.0,0.00025498,2]
[321707167,1712421038602,-261.79876342,0.00025498,2]
[321707168,1712421038617,-537.30777558,0.00025503,2]
[321707169,1712421038630,-500.0,0.00025503,2]
[321707170,1712421038643,-500.0,0.00025503,2]
[321707171,1712421038656,-260.36949478,0.00025503,2]
[321707185,1712421040073,867.75316092,0.000254,2]
[321707279,1712421040875,-239.63050522,0.00025503,2]
[321707281,1712421040884,-500.0,0.00025503,2]
[321707283,1712421040895,-500.0,0.00025503,2]
[321707285,1712421040903,-500.0,0.00025503,2]
[321707287,1712421040912,-1219.81,0.00025503,2]
[321707289,1712421040921,-379.01915625,0.00025503,2]
[321707291,1712421040929,-1078.93,0.00025507,2]
[321707293,1712421040938,-500.0,0.00025507,2]
[321707295,1712421040947,-500.0,0.00025507,2]
[321707297,1712421040957,-500.0,0.00025507,2]
[321707299,1712421040966,-810.91554529,0.00025507,2]
[321707300,1712421040983,-157.35445471,0.00025507,2]
[321707301,1712421040992,-4664.15,0.00025507,2]
[321707302,1712421041002,-1105.28,0.00025507,2]
[321707304,1712421041011,-500.0,0.00025507,2]
[321707306,1712421041020,-930.42,0.00025507,2]
[321707308,1712421041028,-615.6,0.00025507,2]
[321707310,1712421041037,-953.69,0.00025507,2]
[321707312,1712421041045,-491.70393297,0.00025511,2]
[321707314,1712421041055,-500.0,0.00025512,2]
[321707315,1712421041064,-388.99998889,0.00025512,2]
[321707317,1712421041074,-500.0,0.00025512,2]
[321707319,1712421041086,-500.0,0.00025512,2]
[321707321,1712421041097,-500.0,0.00025512,2]
[321707323,1712421041106,-500.0,0.00025512,2]
[321707325,1712421041115,-500.0,0.00025512,2]
[321707326,1712421041124,-500.0,0.00025512,2]
[321707327,1712421041133,-500.0,0.00025512,2]
[321707328,1712421041144,-884.24,0.00025512,2]
[321707329,1712421041153,-500.0,0.00025512,2]
[321707330,1712421041162,-500.0,0.00025512,2]
[321707331,1712421041172,-500.0,0.00025512,2]
[321707332,1712421041183,-261.79876342,0.00025592,2]
[321707333,1712421041192,-500.0,0.00025614,2]
[321707334,1712421041202,-500.0,0.00025615,2]
[321707335,1712421041211,-500.0,0.00025615,2]
[321707336,1712421041221,-500.0,0.00025615,2]
[321707337,1712421041232,-500.0,0.00025615,2]
[321707338,1712421041242,-525.75,0.00025615,2]
[321707339,1712421041251,-500.0,0.00025615,2]
[321707340,1712421041261,-193.12774634,0.00025615,2]
[321707380,1712421043571,-500.0,0.00025512,2]
[321707382,1712421043581,-313.50498837,0.00025615,2]
[321707384,1712421043590,-625.1401482,0.00025615,2]
[321707386,1712421043600,-500.0,0.00025615,2]
[321707388,1712421043609,-500.0,0.00025615,2]
[321707390,1712421043619,-1152.21,0.00025615,2]
[321707392,1712421043629,-10.62942508,0.00025615,2]
[321707395,1712421043641,-489.37057492,0.00025615,2]
[321707396,1712421043650,-266.51100291,0.00025615,2]
[321708265,1712421064579,923.62049851,0.00024334,2]
[321708293,1712421163782,500.0,0.000254,2]
[321708294,1712421184486,500.0,0.000254,2]
[321708295,1712421194550,500.0,0.000254,2]
[321708296,1712421201672,500.0,0.000254,2]
[321708297,1712421204238,500.0,0.000254,2]
[321708298,1712421206007,304.01932181,0.00025398,2]
[321708299,1712421225051,500.0,0.000254,2]
[321708300,1712421236144,1000.0,0.000254,2]
[321708301,1712421259165,500.0,0.000254,2]
[321708302,1712421264760,150.98490151,0.00026992,120]
[321708303,1712421266958,500.0,0.000254,2]
[321708304,1712421267061,1033.98,0.000254,2]
[321708305,1712421281616,500.0,0.000254,2]
[321708306,1712421282375,508.98423176,0.000254,2]
[321708307,1712421308396,927.93,0.000254,2]
[321708308,1712421310751,500.0,0.000254,2]
[321708309,1712421326528,500.0,0.000254,2]
[321708310,1712421337109,1072.70295933,0.00023407,2]
[321708311,1712421337623,175.997156,0.00024224,2]
[321708312,1712421338886,4469.81,0.000254,2]
[321708314,1712421348345,500.0,0.000254,2]
[321708315,1712421351866,1059.23,0.000254,2]
[321708316,1712421357747,500.0,0.000254,2]
[321708317,1712421364151,500.0,0.000254,2]
[321708318,1712421375831,500.0,0.000254,2]
[321708319,1712421392594,500.0,0.000254,2]
[321708320,1712421399745,891.65,0.000254,2]
[321708321,1712421404752,662.89,0.000254,2]
[321708322,1712421417048,589.95,0.000254,2]
[321708323,1712421428056,500.0,0.000254,2]
[321708324,1712421433203,500.0,0.000254,2]
[321708325,1712421438126,500.0,0.000254,2]
[321708326,1712421438540,500.0,0.000254,2]
[321708327,1712421440767,913.95,0.000254,2]
[321708328,1712421442738,267.31924713,0.000254,2]
[321708329,1712421469597,1104.2,0.000254,2]
[321708330,1712421474234,500.0,0.000254,2]
[321708331,1712421479448,500.0,0.000254,2]
[321708332,1712421480956,753.28,0.000254,2]
[321708333,1712421484342,500.0,0.000254,2]
[321708334,1712421486158,266.01690661,0.00025398,2]
[321708335,1712421488504,587.28876307,0.00025398,2]
[321708337,1712421493820,500.0,0.000254,2]
[321708338,1712421498923,500.0,0.000254,2]
[321708339,1712421535501,500.0,0.000254,2]
[321708340,1712421556627,151.0,0.00027121,120]
[321708341,1712421557300,847.4,0.000254,2]
[321708342,1712421594868,500.0,0.000254,2]
[321708343,1712421596696,500.0,0.000254,2]
[321708344,1712421600472,500.0,0.000254,2]
[321708345,1712421637558,500.0,0.000254,2]
[321708346,1712421637725,500.0,0.000254,2]
[321708347,1712421638242,715.13530622,0.00023407,2]
[321708348,1712421657280,500.0,0.000254,2]
[321708349,1712421681124,500.0,0.000254,2]
[321708350,1712421687545,589.39536,0.000254,2]
[321708351,1712421767574,232.76479324,0.00025394,2]
[321708352,1712421774818,506.34190634,0.000254,2]
[321708353,1712421778240,500.0,0.000254,2]
[321708354,1712421797456,500.0,0.000254,2]
[321708355,1712421799291,10000.0,0.000254,2]
[321708356,1712421809261,10000.0,0.000254,2]
[321708357,1712421830813,1802.83604129,0.000254,2]
[321708358,1712421887160,469.83101044,0.00025299,2]
[321708359,1712421898731,561.55696504,0.00024128,2]
[321708360,1712421939468,476.75687081,0.00023412,2]
[321708363,1712422047696,203.66919412,0.000253,2]
[321708364,1712422111686,700.5479373,0.00024397,2]
[321708366,1712422158994,-613.28498652,0.00025616,10]
[321708367,1712422159060,-10361.06804925,0.00025616,10]
[321708368,1712422200154,-2412.36197771,0.00025616,10]
[321708388,1712422232687,-867.75316092,0.00025382,2]
[321708389,1712422232697,-537.45185021,0.00025383,2]
[321708390,1712422232706,-33.42342605,0.00025384,2]
[321708405,1712422232818,-121.57657395,0.00025384,2]
[321708407,1712422232829,-3136.03681556,0.00025384,2]
[321708409,1712422232839,-1484.4319684,0.00025385,2]
[321708411,1712422232848,-300.0,0.00025387,2]
[321708412,1712422232857,-300.0,0.00025387,2]
[321708414,1712422232867,-469.83101044,0.00025392,2]
[321708416,1712422232876,-299.50930159,0.00025395,2]
[321708417,1712422232885,-999.76,0.00025396,2]
[321708418,1712422232894,-43635.10166894,0.00025397,2]
[321708419,1712422232904,-213.36966749,0.00025397,2]
[321708420,1712422232915,-990.9,0.00025398,2]
[321708421,1712422232924,-364.08113403,0.00025398,2]
[321708422,1712422232932,-889.26,0.00025398,2]
[321708423,1712422232942,-4283.57,0.00025398,2]
[321708424,1712422232953,-1015.1,0.00025398,2]
[321708425,1712422232962,-500.0,0.00025398,2]
[321708426,1712422232972,-500.0,0.00025398,2]
[321708427,1712422232981,-854.5,0.00025398,2]
[321708428,1712422232991,-565.37,0.00025398,2]
[321708429,1712422233000,-500.0,0.00025398,2]
[321708430,1712422233010,-500.0,0.00025398,2]
[321708431,1712422233019,-875.87,0.00025398,2]
[321708432,1712422233029,-500.0,0.00025398,2]
[321708433,1712422233038,-500.0,0.00025398,2]
[321708434,1712422233047,-1058.19,0.00025398,2]
[321708435,1712422233056,-721.89,0.00025398,2]
[321708436,1712422233066,-156.91757844,0.00025399,2]
[321708449,1712422238660,-245.97014095,0.00025399,2]
[321708450,1712422238670,-500.0,0.00025399,2]
[321708451,1712422238679,-347.51117989,0.00025399,2]
[321708452,1712422238689,-7850.67395871,0.000254,2]
[321708453,1712422238698,-500.0,0.000254,2]
[321708454,1712422238707,-279.734183,0.000254,2]
[321708455,1712422238716,-223.81288334,0.000254,2]
[321708456,1712422238725,-500.0,0.000254,2]
[321708457,1712422238734,-500.0,0.000254,2]
[321708458,1712422238743,-500.0,0.000254,2]
[321708459,1712422238752,-201.82331273,0.00025483,2]
[321708460,1712422238761,-469.83101044,0.00025485,2]
[321708461,1712422238771,-2089.20837967,0.00025491,2]
[321708462,1712422238780,-201.83,0.00025492,2]
[321708463,1712422238789,-230.36005979,0.00025492,2]
[321708464,1712422238798,-500.0,0.00025492,2]
[321708465,1712422238807,-1168.99,0.00025492,2]
[321708466,1712422238816,-3294.5,0.00025492,2]
[321708467,1712422238825,-8704.77192568,0.00025494,2]
[321708468,1712422238834,-500.0,0.00025496,2]
[321708469,1712422238844,-500.0,0.00025496,2]
[321708470,1712422238853,-339.05457892,0.00025496,2]
[321708471,1712422238862,-500.0,0.00025496,2]
[321708472,1712422238871,-500.0,0.00025496,2]
[321708473,1712422238881,-500.0,0.00025496,2]
[321708474,1712422238890,-812.09,0.00025496,2]
[321708475,1712422238899,-500.0,0.00025496,2]
[321708476,1712422238908,-500.0,0.00025496,2]
[321708477,1712422238917,-469.83101044,0.00025577,2]
[321708478,1712422238926,-500.0,0.00025613,2]
[321708479,1712422238935,-469.83101044,0.0002567,2]
[321708480,1712422238945,-990.9,0.00025672,2]
[321708481,1712422238955,-889.26,0.00025672,2]
[321708482,1712422238964,-4283.57,0.00025672,2]
[321708483,1712422238973,-1015.1,0.00025672,2]
[321708484,1712422238982,-500.0,0.00025672,2]
[321708485,1712422238992,-500.0,0.00025672,2]
[321708486,1712422239001,-854.5,0.00025672,2]
[321708487,1712422239010,-565.37,0.00025672,2]
[321708488,1712422239019,-500.0,0.00025672,2]
[321708489,1712422239029,-500.0,0.00025672,2]
[321708490,1712422239038,-875.87,0.00025672,2]
[321708491,1712422239047,-500.0,0.00025672,2]
[321708492,1712422239057,-461.06406115,0.00025672,2]
[321708493,1712422239066,-1058.19,0.00025672,2]
[321708494,1712422239075,-721.89,0.00025672,2]
[321708495,1712422239084,-662.89,0.00025674,2]
[321708496,1712422239093,-7678.03526613,0.00025677,2]
[321708497,1712422239103,-151.0,0.00025677,2]
[321708498,1712422239112,-151.0,0.00025677,2]
[321708499,1712422239121,-151.0,0.00025677,2]
[321708500,1712422239130,-151.0,0.00025677,2]
[321708501,1712422239140,-1168.99,0.00025766,2]
[321708502,1712422239150,-3294.5,0.00025766,2]
[321708503,1712422239161,-513.94644829,0.00025769,2]
[321708504,1712422239171,-500.0,0.0002577,2]
[321708505,1712422239181,-500.0,0.0002577,2]
[321708506,1712422239190,-500.0,0.0002577,2]
[321708507,1712422239199,-643.513662,0.0002577,2]
[321708508,1712422239209,-643.513662,0.0002577,2]
[321708509,1712422239218,-643.513662,0.0002577,2]
[321708510,1712422239228,-643.513662,0.0002577,2]
[321708511,1712422239237,-500.0,0.0002577,2]
[321708512,1712422239249,-151.0,0.0002577,2]
[321708513,1712422239260,-500.0,0.0002577,2]
[321708514,1712422239269,-151.0,0.0002577,2]
[321708515,1712422239278,-222.629416,0.0002577,2]
[321708516,1712422239287,-185.031876,0.0002577,2]
[321708517,1712422239296,-151.0,0.0002577,2]
[321708518,1712422239305,-812.09,0.0002577,2]
[321708519,1712422239315,-151.0,0.0002577,2]
[321708520,1712422239325,-500.0,0.0002577,2]
[321708521,1712422239334,-151.0,0.0002577,2]
[321708522,1712422239345,-500.0,0.0002577,2]
[321708523,1712422239355,-262.077024,0.0002577,2]
[321708524,1712422239366,-151.0,0.0002577,2]
[321708525,1712422239377,-151.0,0.00025775,2]
[321708526,1712422239386,-151.0,0.00025775,2]
[321708527,1712422239397,-153.0,0.000258,2]
[321708528,1712422239407,-153.0,0.000258,2]
[321708529,1712422239419,-153.0,0.000258,2]
[321708530,1712422239429,-306.0,0.000258,2]
[321708531,1712422239438,-153.0,0.000258,2]
[321708532,1712422239449,-206.87506116,0.00025864,2]
[321708533,1712422239458,-242.23655039,0.00025864,2]
[321708534,1712422239468,-378.41201764,0.00025864,2]
[321708535,1712422239477,-151.0,0.00025864,2]
[321708536,1712422239487,-472.30961185,0.00025865,2]
[321708537,1712422239497,-192.5874711,0.00025865,2]
[321708538,1712422239507,-2084.38029146,0.00025865,2]
[321708539,1712422239517,-1613.89122089,0.00025865,2]
[321708540,1712422239527,-151.0,0.00025865,2]
[321708541,1712422239538,-151.0,0.00025865,2]
[321708542,1712422239548,-151.0,0.00025865,2]
[321708543,1712422239557,-3712.81767264,0.00025874,2]
[321708544,1712422239567,-523.95794291,0.00025874,2]
[321708545,1712422239577,-153.0,0.000259,2]
[321708546,1712422239585,-153.0,0.000259,2]
[321708547,1712422239596,-153.0,0.000259,2]
[321708548,1712422239606,-153.0,0.000259,2]
[321708549,1712422239616,-153.0,0.000259,2]
[321708550,1712422239627,-153.0,0.000259,2]
[321708551,1712422239637,-153.0,0.000259,2]
[321708552,1712422239646,-153.0,0.000259,2]
[321708553,1712422239656,-153.0,0.000259,2]
[321708554,1712422239671,-153.0,0.000259,2]
[321708555,1712422239681,-153.0,0.000259,2]
[321708556,1712422239690,-153.0,0.000259,2]
[321708557,1712422239700,-153.0,0.000259,2]
[321708558,1712422239708,-153.0,0.000259,2]
[321708559,1712422239718,-151.0,0.000259,2]
[321708560,1712422239727,-153.0,0.000259,2]
[321708561,1712422239736,-153.0,0.000259,2]
[321708562,1712422239745,-153.0,0.000259,2]
[321708563,1712422239754,-643.513662,0.000259,2]
[321708564,1712422239764,-643.513662,0.000259,2]
[321708565,1712422239773,-151.0,0.000259,2]
[321708566,1712422239783,-151.0,0.000259,2]
[321708567,1712422239793,-990.9,0.00025946,2]
[321708568,1712422239802,-889.26,0.00025946,2]
[321708569,1712422239811,-2632.41702197,0.00025946,2]
[321708640,1712422240678,317.83791387,0.0002367,2]
[321708663,1712422240814,-500.0,0.00025398,2]
[321708666,1712422240823,-68.43863103,0.00025672,2]
[321708669,1712422240836,-431.56136897,0.00025672,2]
[321708673,1712422240845,-248.95471658,0.00025946,2]
[321708681,1712422240880,-1402.19826145,0.00025946,2]
[321708684,1712422240889,-1015.1,0.00025946,2]
[321708687,1712422240899,-500.0,0.00025946,2]
[321708689,1712422240908,-500.0,0.00025946,2]
[321708691,1712422240918,-854.5,0.00025946,2]
[321708693,1712422240927,-565.37,0.00025946,2]
[321708695,1712422240936,-500.0,0.00025946,2]
[321708697,1712422240946,-500.0,0.00025946,2]
[321708699,1712422240955,-875.87,0.00025946,2]
[321708701,1712422240965,-500.0,0.00025946,2]
[321708703,1712422240974,-1058.19,0.00025946,2]
[321708705,1712422240985,-721.89,0.00025946,2]
[321708707,1712422240994,-151.0,0.00025946,2]
[321708709,1712422241004,-500.0,0.00025946,2]
[321708710,1712422241013,-662.89,0.00025948,2]
[321708711,1712422241022,-152.724681,0.00025948,2]
[321708712,1712422241031,-151.0,0.00025948,2]
[321708713,1712422241040,-151.0,0.00025948,2]
[321708714,1712422241049,-251.008626,0.00025948,2]
[321708715,1712422241059,-1168.99,0.0002604,2]
[321708716,1712422241068,-3294.5,0.0002604,2]
[321708717,1712422241077,-604.6654749,0.00026044,2]
[321708718,1712422241088,-151.0,0.00026044,2]
[321708719,1712422241097,-500.0,0.00026044,2]
[321708720,1712422241106,-151.0,0.00026044,2]
[321708721,1712422241116,-500.0,0.00026044,2]
[321708722,1712422241125,-643.513662,0.00026044,2]
[321708723,1712422241134,-626.25110919,0.00026044,2]
[321708912,1712422246792,-0.04266042,0.00026043,2]
[321708914,1712422277588,409.29555952,0.00025298,2]
[321708915,1712422284793,178.477364,0.00024981,2]
[321708916,1712422301367,180.068966,0.00024707,2]
[321708917,1712422311222,1154.16414112,0.00025286,2]
[321708918,1712422319903,155.0,0.00024981,2]
[321708919,1712422323629,200.0,0.00024659,2]
[321708920,1712422341915,155.0,0.00024981,2]
[321708921,1712422365921,155.0,0.00024981,2]
[321708922,1712422379913,155.0,0.00024981,2]
[321708923,1712422389500,150.98490151,0.00027072,120]
[321708924,1712422399933,155.0,0.00024981,2]
[321708925,1712422400579,690.1102328,0.00024981,2]
[321708926,1712422421923,155.0,0.00024981,2]
[321708927,1712422422528,612.57836449,0.00024981,2]